bitfinex/quotes_BTCUSD_20241103
["timestamp","ask_amount","ask_price","bid_price","bid_amount"]
[1730634488996,0.130738,68424.0,68423.0,0.38077143]
[1730634489463,0.130738,68424.0,68423.0,0.37677143]
[1730634489907,0.130738,68424.0,68423.0,0.38077143]
[1730634490590,0.128738,68424.0,68423.0,0.37677143]
[1730634490805,0.130738,68424.0,68423.0,0.37677143]
[1730634491015,0.131738,68424.0,68423.0,0.38177143]
[1730634491233,0.130738,68424.0,68423.0,0.37677143]
[1730634491688,0.128738,68424.0,68423.0,0.38077143]
[1730634492110,0.128738,68424.0,68423.0,0.38177143]
[1730634492774,0.128738,68424.0,68423.0,0.37777143]
[1730634493236,0.083438,68424.0,68423.0,0.38277143]
[1730634493447,0.082438,68424.0,68423.0,0.37777143]
[1730634493872,0.082438,68424.0,68423.0,0.38177143]
[1730634494089,0.082438,68424.0,68423.0,0.37677143]
[1730634494564,0.085438,68424.0,68423.0,0.38177143]
[1730634494768,0.085438,68424.0,68423.0,0.37677143]
[1730634494985,0.083438,68424.0,68423.0,0.37677143]
[1730634495399,0.085438,68424.0,68423.0,0.37677143]
[1730634495820,0.083438,68424.0,68423.0,0.37677143]
[1730634496286,0.083438,68424.0,68423.0,0.37777143]
[1730634496747,0.083438,68424.0,68423.0,0.33617028]
[1730634496960,0.082438,68424.0,68423.0,0.33217028]
[1730634497398,0.083438,68424.0,68423.0,0.33717028]
[1730634497613,0.083438,68424.0,68423.0,0.33117028]
[1730634497817,0.083438,68424.0,68423.0,0.33109575]
[1730634498057,0.130338,68424.0,68423.0,0.40171793]
[1730634498269,0.129338,68424.0,68423.0,0.001819]
[1730634498482,0.129338,68424.0,68423.0,0.000819]
[1730634498691,0.129338,68424.0,68423.0,0.003819]
[1730634498924,0.132338,68424.0,68423.0,0.003819]
[1730634499388,0.129338,68424.0,68423.0,0.003819]
[1730634499904,0.133338,68424.0,68423.0,0.000819]
[1730634500374,0.133338,68424.0,68423.0,0.002819]
[1730634500595,0.133338,68424.0,68423.0,0.000819]
[1730634500830,0.133338,68424.0,68423.0,0.001819]
[1730634501055,0.129338,68424.0,68423.0,0.000819]
[1730634501488,0.133338,68424.0,68423.0,0.000819]
[1730634501927,0.129338,68424.0,68423.0,0.000819]
[1730634502151,0.138338,68424.0,68423.0,0.000819]
[1730634503064,0.141338,68424.0,68423.0,0.000819]
[1730634503302,0.138338,68424.0,68423.0,0.000819]
[1730634503751,0.142338,68424.0,68423.0,0.000819]
[1730634503957,0.138338,68424.0,68423.0,0.000819]
[1730634504409,0.143338,68424.0,68423.0,0.001819]
[1730634504624,0.152338,68424.0,68423.0,0.001819]
[1730634505256,0.143338,68424.0,68423.0,0.001819]
[1730634505482,0.157338,68424.0,68423.0,0.001819]
[1730634511091,0.143338,68424.0,68423.0,0.001819]
[1730634511517,0.157338,68424.0,68423.0,0.001819]
[1730634511714,0.143338,68424.0,68423.0,0.000819]
[1730634511929,0.139338,68424.0,68423.0,0.001819]
[1730634512143,0.153338,68424.0,68423.0,0.001819]
[1730634513228,0.143338,68424.0,68423.0,0.000819]
[1730634513698,0.153338,68424.0,68423.0,0.001819]
[1730634513908,0.143338,68424.0,68423.0,0.000819]
[1730634514328,0.139338,68424.0,68423.0,0.001819]
[1730634514769,0.143338,68424.0,68423.0,0.000819]
[1730634515201,0.139338,68424.0,68423.0,0.001819]
[1730634515448,0.153338,68424.0,68423.0,0.001819]
[1730634515883,0.139338,68424.0,68423.0,0.001819]
[1730634516941,0.129338,68424.0,68423.0,0.000819]
[1730634517365,0.139338,68424.0,68423.0,0.001819]
[1730634517606,0.143338,68424.0,68423.0,0.000819]
[1730634517842,0.153338,68424.0,68423.0,0.001819]
[1730634518276,0.129338,68424.0,68423.0,0.000819]
[1730634518487,0.153338,68424.0,68423.0,0.001819]
[1730634518923,0.153338,68424.0,68423.0,0.000819]
[1730634519133,0.139338,68424.0,68423.0,0.000819]
[1730634519344,0.153338,68424.0,68423.0,0.000819]
[1730634520243,0.164338,68424.0,68423.0,0.001819]
[1730634520452,0.143338,68424.0,68423.0,0.000819]
[1730634520674,0.143338,68424.0,68423.0,0.001819]
[1730634521093,0.157338,68424.0,68423.0,0.001819]
[1730634531275,0.1738994,68424.0,68423.0,0.001819]
[1730634533788,0.32969644,68424.0,68423.0,0.001819]
[1730634535641,0.31313504,68424.0,68423.0,0.001819]
[1730634540358,0.32683167,68424.0,68423.0,0.001819]
[1730634541309,0.32683172,68424.0,68423.0,0.001819]
[1730634545387,0.39239892,68424.0,68423.0,0.001819]
[1730634545622,0.47786133,68424.0,68423.0,0.001819]
[1730634545883,0.54584522,68424.0,68423.0,0.001819]
[1730634546339,0.39481561,68424.0,68423.0,0.001819]
[1730634546572,0.63344005,68424.0,68423.0,0.001819]
[1730634546814,0.63343387,68424.0,68423.0,0.001819]
[1730634547725,0.54601094,68424.0,68423.0,0.001819]
[1730634548164,0.65528961,68424.0,68423.0,0.001819]
[1730634548651,0.62728961,68424.0,68423.0,0.000819]
[1730634548874,0.64128961,68424.0,68423.0,0.000819]
[1730634549105,0.65528961,68424.0,68423.0,0.001819]
[1730634549333,0.54801094,68424.0,68423.0,0.001819]
[1730634549555,0.53401094,68424.0,68423.0,0.001819]
[1730634549765,0.54801094,68424.0,68423.0,0.001819]
[1730634550231,0.77914534,68424.0,68423.0,0.001819]
[1730634550461,0.76513659,68424.0,68423.0,0.000819]
[1730634550676,0.136,68420.0,68419.0,0.000819]
[1730634550933,0.29547879,68420.0,68419.0,0.000819]
[1730634551161,0.5779958,68420.0,68419.0,0.000819]
[1730634551401,0.4466803,68420.0,68419.0,0.000819]
[1730634552040,0.6919958,68420.0,68419.0,0.000819]
[1730634552325,0.81285179,68420.0,68419.0,0.000819]
[1730634552561,0.81285179,68420.0,68412.0,0.000819]
[1730634552562,0.1348,68413.0,68412.0,0.000819]
[1730634552781,0.4454803,68413.0,68412.0,0.000819]
[1730634553470,0.53290384,68413.0,68412.0,0.000819]
[1730634554120,0.5454803,68413.0,68412.0,0.000819]
[1730634554415,0.70483196,68413.0,68412.0,0.000819]
[1730634554874,0.70165973,68413.0,68412.0,0.000819]
[1730634555327,0.2348,68410.0,68409.0,0.000819]
[1730634555550,0.54227995,68410.0,68409.0,0.000819]
[1730634556685,0.54227995,68410.0,68409.0,6.757e-05]
[1730634556686,0.65137926,68410.0,68409.0,6.757e-05]
[1730634556907,0.62316491,68410.0,68409.0,6.757e-05]
[1730634557133,0.73226411,68410.0,68409.0,6.757e-05]
[1730634557347,0.69675897,68410.0,68409.0,6.757e-05]
[1730634557593,0.73166724,68410.0,68409.0,6.757e-05]
[1730634558282,0.70982656,68410.0,68409.0,6.757e-05]
[1730634558983,0.012,68398.0,68393.0,0.21902447]
[1730634559199,0.29422373,68398.0,68393.0,0.21902447]
[1730634559930,0.29222373,68398.0,68393.0,0.21902447]
[1730634560145,0.29422373,68398.0,68387.0,0.000819]
[1730634560806,0.29222373,68398.0,68387.0,0.000819]
[1730634561015,0.3216461,68398.0,68387.0,0.000819]
[1730634561705,0.3236461,68398.0,68387.0,0.000819]
[1730634562149,0.3356461,68398.0,68387.0,0.000819]
[1730634562375,0.3516461,68398.0,68387.0,0.000819]
[1730634562595,0.3496461,68398.0,68387.0,0.000819]
[1730634563687,0.3516461,68398.0,68387.0,0.000819]
[1730634563914,0.3496461,68398.0,68387.0,0.000819]
[1730634564361,0.30182797,68398.0,68387.0,0.000819]
[1730634565286,0.22682797,68398.0,68387.0,0.000819]
[1730634565528,0.22682797,68398.0,68387.0,0.081119]
[1730634566181,0.1974056,68398.0,68390.0,0.0472]
[1730634566627,0.1924056,68398.0,68390.0,0.0472]
[1730634567096,0.1974056,68398.0,68390.0,0.0472]
[1730634567316,0.1834056,68398.0,68390.0,0.0472]
[1730634567793,0.1694056,68398.0,68390.0,0.0472]
[1730634568017,0.20034616,68398.0,68390.0,0.0472]
[1730634568233,0.18634616,68398.0,68390.0,0.0472]
[1730634568661,0.21434616,68398.0,68390.0,0.0472]
[1730634568877,0.20034616,68398.0,68390.0,0.0472]
[1730634569101,0.18634616,68398.0,68390.0,0.0472]
[1730634569532,0.21434616,68398.0,68390.0,0.0472]
[1730634570876,0.1924056,68398.0,68390.0,0.0472]
[1730634571332,0.17879704,68398.0,68390.0,0.0472]
[1730634571594,0.1924188,68398.0,68390.0,0.0472]
[1730634574003,0.005,68392.0,68390.0,0.039018]
[1730634574241,0.01362176,68391.0,68390.0,0.039018]
[1730634574892,0.005,68392.0,68390.0,0.039018]
[1730634575099,0.01363952,68391.0,68390.0,0.039018]
[1730634576227,0.02763952,68391.0,68390.0,0.039018]
[1730634576438,0.02763952,68391.0,68387.0,0.081119]
[1730634576439,0.04163952,68391.0,68387.0,0.081119]
[1730634576667,0.01363952,68390.0,68387.0,0.081119]
[1730634576880,0.01363952,68389.0,68387.0,0.081119]
[1730634577098,0.01363952,68388.0,68387.0,0.081119]
[1730634578463,0.013,68390.0,68387.0,0.081119]
[1730634578675,0.01366169,68388.0,68387.0,0.081119]
[1730634578860,0.02766169,68388.0,68387.0,0.081119]
[1730634579111,0.04066169,68388.0,68387.0,0.081119]
[1730634579343,0.02766169,68388.0,68387.0,0.081119]
[1730634579530,0.01366169,68388.0,68387.0,0.000819]
[1730634581561,0.02666169,68388.0,68387.0,0.000819]
[1730634581834,0.04066169,68388.0,68387.0,0.000819]
[1730634582478,0.04066169,68388.0,68387.0,0.083119]
[1730634582716,0.027,68388.0,68387.0,0.083119]
[1730634583185,0.027,68388.0,68387.0,0.129519]
[1730634584379,0.013,68388.0,68387.0,0.129519]
[1730634584600,0.21902447,68400.0,68388.0,0.1287]
[1730634584806,0.21902447,68400.0,68389.0,0.0464]
[1730634584807,0.02240245,68399.0,68389.0,0.0464]
[1730634586160,0.03040245,68399.0,68389.0,0.0464]
[1730634586371,0.04440245,68399.0,68389.0,0.0464]
[1730634591534,0.14579704,68398.0,68389.0,0.0464]
[1730634591748,0.0494424,68397.0,68389.0,0.0464]
[1730634593316,0.0574424,68397.0,68389.0,0.0464]
[1730634595125,0.008,68397.0,68389.0,0.0464]
[1730634595584,0.022,68397.0,68389.0,0.0464]
[1730634599555,0.21902447,68396.0,68390.0,0.082]
[1730634599780,0.022,68397.0,68390.0,0.082]
[1730634600942,0.022,68397.0,68389.0,0.047219]
[1730634600943,0.008,68397.0,68393.0,0.082]
[1730634601168,0.008,68397.0,68395.0,0.0475]
[1730634601399,0.014,68396.0,68395.0,0.0475]
[1730634601857,0.001638,68399.0,68396.0,0.023]
[1730634602091,0.001638,68399.0,68397.0,0.1295]
[1730634602358,0.001638,68399.0,68398.0,0.0705]
[1730634602595,0.001638,68399.0,68398.0,0.1525]
[1730634604635,0.010638,68399.0,68398.0,0.1525]
[1730634605079,0.001638,68399.0,68398.0,0.1523]
[1730634605547,0.010638,68399.0,68398.0,0.1523]
[1730634605986,0.012638,68399.0,68398.0,0.1523]
[1730634606439,0.010638,68399.0,68398.0,0.1523]
[1730634606653,0.012638,68399.0,68398.0,0.1523]
[1730634611232,0.012638,68399.0,68398.0,0.0703]
[1730634614851,0.012638,68399.0,68393.0,0.1316]
[1730634615066,0.012638,68399.0,68393.0,0.0496]
[1730634615535,0.012638,68399.0,68390.0,0.000819]
[1730634615745,0.0091438,68398.0,68390.0,0.000819]
[1730634616190,0.21902447,68397.0,68390.0,0.000819]
[1730634616436,0.0487,68396.0,68390.0,0.000819]
[1730634616652,0.0788,68395.0,68390.0,0.000819]
[1730634618059,0.005,68393.0,68390.0,0.000819]
[1730634618290,0.24624674,68392.0,68390.0,0.000819]
[1730634618527,0.22459704,68392.0,68390.0,0.000819]
[1730634618976,0.22459704,68392.0,68390.0,0.000719]
[1730634620846,0.23559704,68392.0,68390.0,0.000719]
[1730634621082,0.24959704,68392.0,68390.0,0.000719]
[1730634621315,0.24959704,68392.0,68391.0,0.21902447]
[1730634621316,0.025,68392.0,68391.0,0.21902447]
[1730634621542,0.025,68392.0,68390.0,0.000719]
[1730634622924,0.011,68392.0,68390.0,0.000719]
[1730634623163,0.025,68392.0,68390.0,0.000719]
[1730634623587,0.011,68392.0,68390.0,0.000719]
[1730634624021,0.21902447,68391.0,68390.0,0.000719]
[1730634624276,0.02490245,68391.0,68390.0,0.000719]
[1730634624508,0.0788,68391.0,68390.0,0.000719]
[1730634624933,0.22459704,68391.0,68390.0,0.000719]
[1730634626311,0.24959704,68391.0,68390.0,0.000719]
[1730634626769,0.17079704,68391.0,68390.0,0.000719]
[1730634632414,0.25809704,68391.0,68390.0,0.000719]
[1730634632655,0.33934582,68391.0,68390.0,0.000719]
[1730634632877,0.34434582,68391.0,68390.0,0.000719]
[1730634633335,0.33034582,68391.0,68390.0,0.000719]
[1730634633556,0.31934582,68391.0,68390.0,0.000719]
[1730634633776,0.33334582,68391.0,68390.0,0.000719]
[1730634633985,0.34534582,68391.0,68390.0,0.000719]
[1730634635312,0.33334582,68391.0,68390.0,0.000719]
[1730634635533,0.34534582,68391.0,68390.0,0.000719]
[1730634635814,0.33134582,68391.0,68390.0,0.000719]
[1730634636674,0.34534582,68391.0,68390.0,0.000719]
[1730634638231,0.33134582,68391.0,68390.0,0.000719]
[1730634638450,0.34534582,68391.0,68390.0,0.000719]
[1730634639104,0.33134582,68391.0,68390.0,0.000719]
[1730634639312,0.34534582,68391.0,68390.0,0.000719]
[1730634639748,0.33134582,68391.0,68390.0,0.000719]
[1730634640182,0.34534582,68391.0,68390.0,0.000719]
[1730634641317,0.33134582,68391.0,68390.0,0.000719]
[1730634641746,0.34534582,68391.0,68390.0,0.000719]
[1730634642185,0.33134582,68391.0,68390.0,0.000719]
[1730634642673,0.34534582,68391.0,68390.0,0.000719]
[1730634642888,0.33334582,68391.0,68390.0,0.000719]
[1730634643108,0.31934582,68391.0,68390.0,0.000719]
[1730634643328,0.34234582,68391.0,68390.0,0.000719]
[1730634643545,0.34734582,68391.0,68390.0,0.000719]
[1730634643794,0.34234582,68391.0,68390.0,0.000719]
[1730634644222,0.34734582,68391.0,68390.0,0.000719]
[1730634644661,0.33334582,68391.0,68390.0,0.000719]
[1730634645109,0.34734582,68391.0,68390.0,0.000719]
[1730634645342,0.31934582,68391.0,68390.0,0.000719]
[1730634645547,0.34734582,68391.0,68390.0,0.000719]
[1730634645757,0.28264582,68391.0,68390.0,0.000719]
[1730634645969,0.26864582,68391.0,68390.0,0.000719]
[1730634646377,0.28264582,68391.0,68390.0,0.000719]
[1730634647199,0.26109704,68391.0,68390.0,0.000719]
[1730634647406,0.17879704,68391.0,68390.0,0.000719]
[1730634648029,0.16643504,68391.0,68390.0,0.000719]
[1730634648262,0.18043504,68391.0,68390.0,0.000719]
[1730634648744,0.17543504,68391.0,68390.0,0.000719]
[1730634648933,0.21175854,68391.0,68390.0,0.000719]
[1730634649921,0.20275854,68391.0,68390.0,0.000719]
[1730634650079,0.33055854,68391.0,68390.0,0.000719]
[1730634650278,0.34455854,68391.0,68390.0,0.000719]
[1730634650733,0.33055854,68391.0,68390.0,0.000719]
[1730634651125,0.31655854,68391.0,68390.0,0.000719]
[1730634651342,0.33055854,68391.0,68390.0,0.000719]
[1730634651752,0.31655854,68391.0,68390.0,0.000719]
[1730634652092,0.34455854,68391.0,68390.0,0.000719]
[1730634652299,0.33055854,68391.0,68390.0,0.000719]
[1730634652622,0.34455854,68391.0,68390.0,0.000719]
[1730634652844,0.33055854,68391.0,68390.0,0.000719]
[1730634653055,0.31655854,68391.0,68390.0,0.000719]
[1730634653265,0.33055854,68391.0,68390.0,0.000719]
[1730634653643,0.31655854,68391.0,68390.0,0.000719]
[1730634654091,0.33255854,68391.0,68390.0,0.000719]
[1730634654299,0.33055854,68391.0,68390.0,0.000719]
[1730634654507,0.34455854,68391.0,68390.0,0.000719]
[1730634659677,0.33055854,68391.0,68390.0,0.000719]
[1730634660059,0.34455854,68391.0,68390.0,0.000719]
[1730634660475,0.29635854,68391.0,68390.0,0.000719]
[1730634660679,0.25103504,68391.0,68390.0,0.000719]
[1730634660895,0.17143504,68391.0,68390.0,0.000719]
[1730634661115,0.18543504,68391.0,68390.0,0.000719]
[1730634661587,0.17143504,68391.0,68390.0,0.000719]
[1730634662457,0.18543504,68391.0,68390.0,0.000719]
[1730634662672,0.18043504,68391.0,68390.0,0.000719]
[1730634662874,0.16643504,68391.0,68390.0,0.000719]
[1730634663313,0.18043504,68391.0,68390.0,0.000719]
[1730634663514,0.17543504,68391.0,68390.0,0.000719]
[1730634663625,0.18043504,68391.0,68390.0,0.000719]
[1730634663830,0.16143504,68391.0,68390.0,0.000719]
[1730634664060,0.18043504,68391.0,68390.0,0.000719]
[1730634664260,0.19897854,68391.0,68390.0,0.000719]
[1730634664761,0.18497854,68391.0,68390.0,0.000719]
[1730634664874,0.17543504,68391.0,68390.0,0.000719]
[1730634665106,0.029638,68391.0,68390.0,0.000719]
[1730634665928,0.015638,68391.0,68390.0,0.000719]
[1730634666175,0.029638,68391.0,68390.0,0.000719]
[1730634667449,0.015638,68391.0,68390.0,0.000719]
[1730634667866,0.015638,68391.0,68390.0,0.082719]
[1730634668118,0.029638,68391.0,68390.0,0.082719]
[1730634668331,0.015638,68391.0,68390.0,0.128919]
[1730634668550,0.001638,68391.0,68390.0,0.128919]
[1730634668766,0.029638,68391.0,68390.0,0.128919]
[1730634668996,0.015638,68391.0,68390.0,0.128919]
[1730634669213,0.001638,68391.0,68390.0,0.128919]
[1730634669461,0.014638,68391.0,68390.0,0.128919]
[1730634669688,0.027638,68391.0,68390.0,0.128919]
[1730634669885,0.027638,68391.0,68390.0,0.046919]
[1730634670132,0.014638,68391.0,68390.0,0.046919]
[1730634671182,0.001638,68391.0,68390.0,0.046919]
[1730634671383,0.014638,68391.0,68390.0,0.046919]
[1730634671596,0.027638,68391.0,68390.0,0.046919]
[1730634684378,0.027638,68391.0,68390.0,0.000719]
[1730634690408,0.17343504,68391.0,68390.0,0.000719]
[1730634690644,0.20862933,68391.0,68390.0,0.000719]
[1730634696528,0.17343504,68391.0,68390.0,0.000719]
[1730634700891,0.027638,68391.0,68390.0,0.000719]
[1730634703615,0.17343504,68391.0,68390.0,0.000719]
[1730634710416,0.21708256,68391.0,68390.0,0.000719]
[1730634710639,0.17343504,68391.0,68390.0,0.000719]
[1730634710885,0.37067366,68391.0,68390.0,0.000719]
[1730634711766,0.33083666,68391.0,68390.0,0.000719]
[1730634711986,0.22706932,68391.0,68390.0,0.000719]
[1730634712232,0.19606932,68391.0,68390.0,0.000719]
[1730634712452,0.20106932,68391.0,68390.0,0.000719]
[1730634712667,0.22806932,68391.0,68390.0,0.000719]
[1730634712881,0.21406932,68391.0,68390.0,0.000719]
[1730634713100,0.25164476,68391.0,68390.0,0.000719]
[1730634713310,0.20801048,68391.0,68390.0,0.000719]
[1730634713547,0.16143504,68391.0,68390.0,0.000719]
[1730634713747,0.17543504,68391.0,68390.0,0.000719]
[1730634713983,0.16143504,68391.0,68390.0,0.000719]
[1730634714440,0.17543504,68391.0,68390.0,0.000719]
[1730634715086,0.16143504,68391.0,68390.0,0.000719]
[1730634715720,0.14743504,68391.0,68390.0,0.000719]
[1730634715927,0.16143504,68391.0,68390.0,0.000719]
[1730634716148,0.029638,68391.0,68390.0,0.047819]
[1730634716383,0.001638,68391.0,68390.0,0.047819]
[1730634716598,0.015638,68391.0,68390.0,0.047819]
[1730634716806,0.029638,68391.0,68390.0,0.047819]
[1730634717020,0.015638,68391.0,68390.0,0.047819]
[1730634717256,0.001638,68391.0,68390.0,0.047819]
[1730634718158,0.015638,68391.0,68390.0,0.047819]
[1730634718360,0.029638,68391.0,68390.0,0.047819]
[1730634718785,0.015638,68391.0,68390.0,0.047819]
[1730634719008,0.025638,68391.0,68390.0,0.047819]
[1730634719449,0.001638,68391.0,68390.0,0.047819]
[1730634719657,0.015638,68391.0,68390.0,0.047819]
[1730634720297,0.011638,68391.0,68390.0,0.047819]
[1730634720733,0.021638,68391.0,68390.0,0.047819]
[1730634721160,0.011638,68391.0,68390.0,0.047819]
[1730634721591,0.001638,68391.0,68390.0,0.047819]
[1730634722021,0.011638,68391.0,68390.0,0.047819]
[1730634722239,0.001638,68391.0,68390.0,0.047819]
[1730634722651,0.010638,68391.0,68390.0,0.047819]
[1730634723169,0.019638,68391.0,68390.0,0.047819]
[1730634723980,0.019638,68391.0,68390.0,0.29961604]
[1730634724616,0.019638,68391.0,68390.0,0.34345194]
[1730634725617,0.019638,68391.0,68390.0,0.153819]
[1730634725845,0.019638,68391.0,68390.0,0.130819]
[1730634736420,0.019638,68391.0,68390.0,0.000719]
[1730634742647,0.0339218,68391.0,68390.0,0.000719]
[1730634744623,0.17971884,68391.0,68390.0,0.000719]
[1730634745282,0.16171884,68391.0,68390.0,0.000719]
[1730634745693,0.17971884,68391.0,68390.0,0.000719]
[1730634745986,0.17071884,68391.0,68390.0,0.000719]
[1730634746211,0.29391884,68391.0,68390.0,0.000719]
[1730634746428,0.29891884,68391.0,68390.0,0.000719]
[1730634746638,0.28491884,68391.0,68390.0,0.000719]
[1730634747047,0.29891884,68391.0,68390.0,0.000719]
[1730634747640,0.31291884,68391.0,68390.0,0.000719]
[1730634748073,0.29891884,68391.0,68390.0,0.000719]
[1730634748287,0.30391884,68391.0,68390.0,0.000719]
[1730634748509,0.31791884,68391.0,68390.0,0.000719]
[1730634748911,0.30391884,68391.0,68390.0,0.000719]
[1730634749346,0.31791884,68391.0,68390.0,0.000719]
[1730634749569,0.30391884,68391.0,68390.0,0.000719]
[1730634749737,0.31791884,68391.0,68390.0,0.000719]
[1730634751186,0.32491884,68391.0,68390.0,0.000719]
[1730634751397,0.32291884,68391.0,68390.0,0.000719]
[1730634753293,0.31791884,68391.0,68390.0,0.000719]
[1730634754278,0.30391884,68391.0,68390.0,0.000719]
[1730634754491,0.31791884,68391.0,68390.0,0.000719]
[1730634754716,0.30391884,68391.0,68390.0,0.000719]
[1730634755143,0.28991884,68391.0,68390.0,0.000719]
[1730634755347,0.30391884,68391.0,68390.0,0.000719]
[1730634755566,0.31791884,68391.0,68390.0,0.000719]
[1730634756403,0.31991884,68391.0,68390.0,0.000719]
[1730634757257,0.30391884,68391.0,68390.0,0.000719]
[1730634758132,0.31791884,68391.0,68390.0,0.000719]
[1730634762143,0.30391884,68391.0,68390.0,0.000719]
[1730634762493,0.28991884,68391.0,68390.0,0.000719]
[1730634762695,0.30391884,68391.0,68390.0,0.000719]
[1730634763527,0.31791884,68391.0,68390.0,0.000719]
[1730634763979,0.32291884,68391.0,68390.0,0.000719]
[1730634764181,0.36845162,68391.0,68390.0,0.000719]
[1730634764380,0.36645162,68391.0,68390.0,0.000719]
[1730634764580,0.32291884,68391.0,68390.0,0.000719]
[1730634764787,0.30891884,68391.0,68390.0,0.000719]
[1730634764978,0.33845162,68391.0,68390.0,0.000719]
[1730634765189,0.35245162,68391.0,68390.0,0.000719]
[1730634765395,0.32291884,68391.0,68390.0,0.000719]
[1730634766570,0.30891884,68391.0,68390.0,0.000719]
[1730634766927,0.36643637,68391.0,68390.0,0.000719]
[1730634767337,0.36843237,68391.0,68390.0,0.000719]
[1730634768161,0.32491884,68391.0,68390.0,0.000719]
[1730634768433,0.36843237,68391.0,68390.0,0.000719]
[1730634768637,0.32491884,68391.0,68390.0,0.000719]
[1730634770769,0.32291884,68391.0,68390.0,0.000719]
[1730634772667,0.32491884,68391.0,68390.0,0.000719]
[1730634772823,0.31091884,68391.0,68390.0,0.000719]
[1730634773420,0.32491884,68391.0,68390.0,0.000719]
[1730634773648,0.31091884,68391.0,68390.0,0.000719]
[1730634773849,0.32491884,68391.0,68390.0,0.000719]
[1730634775513,0.36843237,68391.0,68390.0,0.000719]
[1730634776185,0.32491884,68391.0,68390.0,0.000719]
[1730634776726,0.36841435,68391.0,68390.0,0.000719]
[1730634777856,0.32491884,68391.0,68390.0,0.000719]
[1730634778312,0.36641435,68391.0,68390.0,0.000719]
[1730634778515,0.32291884,68391.0,68390.0,0.000719]
[1730634779862,0.32491884,68391.0,68390.0,0.000719]
[1730634780496,0.36841435,68391.0,68390.0,0.000719]
[1730634781547,0.32491884,68391.0,68390.0,0.000719]
[1730634781752,0.36844867,68391.0,68390.0,0.000719]
[1730634783019,0.36845321,68391.0,68390.0,0.000719]
[1730634783491,0.32491884,68391.0,68390.0,0.000719]
[1730634783709,0.3901621,68391.0,68390.0,0.000719]
[1730634784366,0.56149164,68391.0,68390.0,0.000719]
[1730634784794,0.47440918,68391.0,68390.0,0.000719]
[1730634785180,0.56150623,68391.0,68390.0,0.000719]
[1730634785595,0.47440918,68391.0,68390.0,0.000719]
[1730634786446,0.68326226,68391.0,68390.0,0.000719]
[1730634786604,0.57440918,68391.0,68390.0,0.000719]
[1730634787714,0.56040918,68391.0,68390.0,0.000719]
[1730634788550,0.57440918,68391.0,68390.0,0.000719]
[1730634789314,0.54440918,68391.0,68390.0,0.000719]
[1730634789522,0.57240918,68391.0,68390.0,0.000719]
[1730634790364,0.52430918,68391.0,68390.0,0.000719]
[1730634790571,0.51030918,68391.0,68390.0,0.000719]
[1730634790791,0.49630918,68391.0,68390.0,0.000719]
[1730634791190,0.51230918,68391.0,68390.0,0.000719]
[1730634791389,0.49830918,68391.0,68390.0,0.000719]
[1730634791791,0.51230918,68391.0,68390.0,0.000719]
[1730634791998,0.49830918,68391.0,68390.0,0.000719]
[1730634792201,0.51230918,68391.0,68390.0,0.000719]
[1730634792416,0.52630918,68391.0,68390.0,0.000719]
[1730634792627,0.51230918,68391.0,68390.0,0.000719]
[1730634792852,0.49830918,68391.0,68390.0,0.000719]
[1730634793069,0.51230918,68391.0,68390.0,0.000719]
[1730634793305,0.51306533,68391.0,68390.0,0.000719]
[1730634793968,0.49906533,68391.0,68390.0,0.000719]
[1730634794183,0.51306533,68391.0,68390.0,0.000719]
[1730634794668,0.49906533,68391.0,68390.0,0.000719]
[1730634794880,0.51306533,68391.0,68390.0,0.000719]
[1730634795307,0.49706533,68391.0,68390.0,0.000719]
[1730634795536,0.52706533,68391.0,68390.0,0.000719]
[1730634797706,0.65791808,68391.0,68390.0,0.000719]
[1730634797930,0.52706533,68391.0,68390.0,0.000719]
[1730634798981,0.65798459,68391.0,68390.0,0.000719]
[1730634799199,0.52706533,68391.0,68390.0,0.000719]
[1730634800087,0.65799057,68391.0,68390.0,0.000719]
[1730634801190,0.52706533,68391.0,68390.0,0.000719]
[1730634801814,0.62422653,68391.0,68390.0,0.000719]
[1730634802263,0.57546533,68391.0,68390.0,0.000719]
[1730634802466,0.57675136,68391.0,68390.0,0.000719]
[1730634802879,0.5904053,68391.0,68390.0,0.000719]
[1730634803682,0.59040443,68391.0,68390.0,0.000719]
[1730634807029,0.59050647,68391.0,68390.0,0.000719]
[1730634807257,0.59050382,68391.0,68390.0,0.000719]
[1730634808349,0.59050382,68391.0,68384.0,0.000819]
[1730634808350,0.005,68368.0,68360.0,0.047027]
[1730634808596,0.005,68367.0,68366.0,4.5e-05]
[1730634808820,0.16444449,68367.0,68366.0,4.5e-05]
[1730634809246,0.31585591,68367.0,68366.0,4.5e-05]
[1730634809457,0.46074712,68367.0,68366.0,4.5e-05]
[1730634809693,0.005,68363.0,68360.0,0.032027]
[1730634809935,0.15944449,68362.0,68360.0,0.032027]
[1730634810168,0.01364745,68361.0,68360.0,0.032027]
[1730634810387,0.18680096,68361.0,68360.0,0.032027]
[1730634811012,0.18678459,68361.0,68360.0,0.032027]
[1730634811464,0.20078459,68361.0,68358.0,0.0831]
[1730634811675,0.15942812,68360.0,68358.0,0.0831]
[1730634811912,0.01363108,68359.0,68358.0,0.0831]
[1730634812122,0.15942812,68359.0,68358.0,0.0831]
[1730634812768,0.15942812,68359.0,68358.0,0.1293]
[1730634814044,0.17342812,68359.0,68358.0,0.1293]
[1730634814491,0.19267093,68359.0,68358.0,0.1293]
[1730634814926,0.17903985,68359.0,68358.0,0.1293]
[1730634815153,0.19303985,68359.0,68358.0,0.1293]
[1730634815581,0.17379704,68359.0,68358.0,0.1293]
[1730634821696,0.17379704,68359.0,68358.0,0.130119]
[1730634821919,0.15979704,68359.0,68358.0,0.130119]
[1730634822143,0.17379704,68359.0,68358.0,0.130119]
[1730634822603,0.14579704,68359.0,68358.0,0.130119]
[1730634823886,0.15979704,68359.0,68358.0,0.130119]
[1730634824133,0.17379704,68359.0,68358.0,0.130119]
[1730634824571,0.15979704,68359.0,68358.0,0.130119]
[1730634824793,0.19027674,68359.0,68358.0,0.130119]
[1730634827557,0.19027674,68359.0,68358.0,0.000819]
[1730634828822,0.20389081,68359.0,68358.0,0.000819]